[Event "FIDE U16 Olympiad_boards_81-124"]
[Site "Eindhoven, Netherlands"]
[Date "2023.08.14"]
[Round "2.31"]
[White "Fan, Chloe"]
[Black "Govender, Keniesha"]
[Result "1-0"]
[TimeControl "45min+10sec"]
[WhiteElo "1787"]
[BlackElo "1210"]

1. e4 {[%clk 00:45:18]} {[%emt 00:00:02]} c5 {[%clk 00:45:18]} {[%emt
00:00:03]} 2. Nf3 {[%clk 00:45:26]} {[%emt 00:00:02]} d6 {[%clk 00:45:26]}
{[%emt 00:00:02]} 3. Bb5+ {[%clk 00:45:33]} {[%emt 00:00:02]} Bd7 {[%clk
00:45:16]} {[%emt 00:00:21]} 4. Bxd7+ {[%clk 00:45:41]} {[%emt 00:00:02]} Nxd7
{[%clk 00:45:16]} {[%emt 00:00:10]} 5. O-O {[%clk 00:45:40]} {[%emt 00:00:11]}
Ngf6 {[%clk 00:45:22]} {[%emt 00:00:04]} 6. Re1 {[%clk 00:45:29]} {[%emt
00:00:22]} e6 {[%clk 00:44:54]} {[%emt 00:00:38]} 7. c3 {[%clk 00:45:29]}
{[%emt 00:00:09]} Be7 {[%clk 00:44:47]} {[%emt 00:00:17]} 8. d4 {[%clk
00:45:36]} {[%emt 00:00:03]} O-O {[%clk 00:43:29]} {[%emt 00:01:28]} 9. Bf4
{[%clk 00:43:24]} {[%emt 00:02:22]} cxd4 {[%clk 00:42:28]} {[%emt 00:01:11]} 10.
cxd4 {[%clk 00:43:30]} {[%emt 00:00:04]} Nb6 {[%clk 00:39:07]} {[%emt
00:03:31]} 11. Nc3 {[%clk 00:42:07]} {[%emt 00:01:32]} Rc8 {[%clk 00:37:25]}
{[%emt 00:01:52]} 12. Qb3 {[%clk 00:40:35]} {[%emt 00:01:43]} d5 {[%clk
00:30:50]} {[%emt 00:06:46]} 13. e5 {[%clk 00:38:00]} {[%emt 00:02:44]} Nfd7
{[%clk 00:25:06]} {[%emt 00:05:54]} 14. a4 {[%clk 00:33:17]} {[%emt 00:04:53]}
a6 {[%clk 00:05:37]} {[%emt 00:19:39]} 15. Rac1 {[%clk 00:20:16]} {[%emt
00:13:10]} Rc4 {[%clk 00:01:26]} {[%emt 00:04:22]} 16. a5 {[%clk 00:14:38]}
{[%emt 00:05:48]} Rb4 {[%clk 00:01:20]} {[%emt 00:00:17]} 17. Qa2 {[%clk
00:11:02]} {[%emt 00:03:46]} Nc4 {[%clk 00:01:13]} {[%emt 00:00:14]} 18. Na4
{[%clk 00:09:00]} {[%emt 00:02:13]} Qxa5 {[%clk 00:00:49]} {[%emt 00:00:35]} 19.
b3 {[%clk 00:08:26]} {[%emt 00:00:43]} b5 {[%clk 00:00:16]} {[%emt 00:00:44]}
20. Re2 {[%clk 00:06:43]} {[%emt 00:01:53]} bxa4 {[%clk 00:00:15]} {[%emt
00:00:11]} 21. bxc4 {[%clk 00:06:52]} {[%emt 00:00:02]} Rxc4 {[%clk 00:00:14]}
{[%emt 00:00:11]} 22. Rxc4 {[%clk 00:07:00]} {[%emt 00:00:02]} dxc4 {[%clk
00:00:23]} {[%emt 00:00:01]} 23. Qxc4 {[%clk 00:07:07]} {[%emt 00:00:02]} Qb5
{[%clk 00:00:26]} {[%emt 00:00:08]} 24. Rc2 {[%clk 00:05:34]} {[%emt 00:01:42]}
Nb6 {[%emt 00:00:13]} 25. Qa2 {[%clk 00:04:15]} {[%emt 00:01:27]} Nd5 {[%clk
00:00:33]} {[%emt 00:00:02]} 26. Bd2 {[%clk 00:04:16]} {[%emt 00:00:08]} Rb8
{[%clk 00:00:17]} {[%emt 00:00:26]} 27. h3 {[%clk 00:03:41]} {[%emt 00:00:46]}
Nb4 {[%clk 00:00:26]} {[%emt 00:00:01]} 28. Bxb4 {[%clk 00:03:49]} {[%emt
00:00:02]} Qxb4 {[%clk 00:00:35]} {[%emt 00:00:01]} 29. Kh2 {[%clk 00:03:09]}
{[%emt 00:00:50]} Qb3 {[%clk 00:00:34]} {[%emt 00:00:11]} 30. Nd2 {[%clk
00:02:52]} {[%emt 00:00:27]} h6 {[%clk 00:00:42]} {[%emt 00:00:02]} 31. Nxb3
{[%clk 00:02:58]} {[%emt 00:00:04]} axb3 {[%clk 00:00:51]} 32. Qb1 {[%clk
00:02:54]} {[%emt 00:00:14]} a5 {[%clk 00:00:49]} {[%emt 00:00:12]} 33. Rc7
{[%clk 00:02:38]} {[%emt 00:00:26]} Bd8 {[%clk 00:00:27]} {[%emt 00:00:33]} 34.
Ra7 {[%clk 00:01:53]} {[%emt 00:00:54]} Bb6 {[%clk 00:00:24]} {[%emt 00:00:14]}
35. Rd7 {[%clk 00:01:13]} {[%emt 00:00:49]} a4 {[%clk 00:00:13]} {[%emt
00:00:22]} 36. Qb2 {[%clk 00:01:05]} {[%emt 00:00:17]} Bd8 {[%emt 00:00:12]} 37.
Ra7 {[%clk 00:00:42]} {[%emt 00:00:32]} Kh7 {[%clk 00:00:13]} {[%emt 00:00:09]}
38. Rxa4 {[%clk 00:00:46]} {[%emt 00:00:06]} Be7 {[%clk 00:00:15]} {[%emt
00:00:07]} 39. Rc4 {[%clk 00:00:26]} {[%emt 00:00:30]} Rb7 {[%clk 00:00:11]}
{[%emt 00:00:15]} 40. Rc3 {[%clk 00:00:29]} {[%emt 00:00:06]} Rb8 {[%emt
00:00:12]} 41. Rxb3 {[%clk 00:00:35]} {[%emt 00:00:03]} Rc8 {[%clk 00:00:14]}
{[%emt 00:00:07]} 42. Rb7 {[%clk 00:00:41]} {[%emt 00:00:04]} Re8 {[%clk
00:00:16]} {[%emt 00:00:08]} 43. Qb5 {[%clk 00:00:48]} {[%emt 00:00:03]} 1-0

[Event "FIDE U16 Olympiad_boards_81-124"]
[Site "Eindhoven, Netherlands"]
[Date "2023.08.14"]
[Round "2.32"]
[White "Matshego, Thato"]
[Black "O'carroll, Om"]
[Result "0-1"]
[TimeControl "45min+10sec"]
[WhiteElo "1150"]
[BlackElo "1284"]

1. d4 {[%clk 00:45:18]} {[%emt 00:00:02]} d5 {[%clk 00:45:19]} {[%emt
00:00:02]} 2. Nc3 {[%clk 00:45:23]} {[%emt 00:00:05]} Nf6 {[%clk 00:45:22]}
{[%emt 00:00:07]} 3. Bf4 {[%clk 00:45:23]} {[%emt 00:00:10]} c6 {[%clk
00:44:31]} {[%emt 00:01:01]} 4. e3 {[%clk 00:45:20]} {[%emt 00:00:14]} Bf5
{[%clk 00:44:33]} {[%emt 00:00:07]} 5. f3 {[%clk 00:45:12]} {[%emt 00:00:18]}
h6 {[%clk 00:43:06]} {[%emt 00:01:37]} 6. h4 {[%clk 00:44:09]} {[%emt
00:01:13]} e6 {[%clk 00:41:58]} {[%emt 00:01:18]} 7. g4 {[%clk 00:44:15]}
{[%emt 00:00:03]} Bh7 {[%clk 00:41:53]} {[%emt 00:00:15]} 8. Bd3 {[%clk
00:44:23]} {[%emt 00:00:02]} Bxd3 {[%clk 00:40:56]} {[%emt 00:01:07]} 9. Qxd3
{[%clk 00:44:31]} {[%emt 00:00:02]} Bd6 {[%clk 00:39:06]} {[%emt 00:02:01]} 10.
Nge2 {[%clk 00:44:38]} {[%emt 00:00:02]} Bxf4 {[%clk 00:37:01]} {[%emt
00:02:15]} 11. Nxf4 {[%clk 00:44:44]} {[%emt 00:00:04]} Nbd7 {[%clk 00:37:05]}
{[%emt 00:00:06]} 12. O-O-O {[%clk 00:43:03]} {[%emt 00:01:51]} Qc7 {[%clk
00:33:59]} {[%emt 00:03:16]} 13. g5 {[%clk 00:43:08]} {[%emt 00:00:06]} Ng8
{[%clk 00:29:32]} {[%emt 00:04:37]} 14. g6 {[%clk 00:43:03]} {[%emt 00:00:15]}
Ndf6 {[%clk 00:29:37]} {[%emt 00:00:05]} 15. gxf7+ {[%clk 00:42:55]} {[%emt
00:00:18]} Qxf7 {[%clk 00:29:41]} {[%emt 00:00:05]} 16. Ng6 {[%clk 00:42:16]}
{[%emt 00:00:50]} Rh7 {[%clk 00:29:01]} {[%emt 00:00:50]} 17. Ne5 {[%clk
00:42:22]} {[%emt 00:00:03]} Qe7 {[%clk 00:28:03]} {[%emt 00:01:07]} 18. Qg6+
{[%clk 00:41:30]} {[%emt 00:01:03]} Kd8 {[%clk 00:27:56]} {[%emt 00:00:17]} 19.
Na4 {[%clk 00:40:39]} {[%emt 00:01:01]} Kc7 {[%clk 00:26:13]} {[%emt 00:01:53]}
20. Nc5 {[%clk 00:40:42]} {[%emt 00:00:07]} b6 {[%clk 00:22:13]} {[%emt
00:04:11]} 21. Nb3 {[%clk 00:36:34]} {[%emt 00:04:18]} a5 {[%clk 00:17:55]}
{[%emt 00:04:28]} 22. Rd3 {[%clk 00:36:22]} {[%emt 00:00:22]} Kb7 {[%clk
00:15:35]} {[%emt 00:02:31]} 23. Rc3 {[%clk 00:33:10]} {[%emt 00:03:22]} Rc8
{[%clk 00:15:37]} {[%emt 00:00:07]} 24. a3 {[%clk 00:32:42]} {[%emt 00:00:39]}
Qe8 {[%clk 00:15:23]} {[%emt 00:00:24]} 25. Nf7 {[%clk 00:31:55]} {[%emt
00:00:57]} Ka8 {[%clk 00:15:18]} {[%emt 00:00:15]} 26. Rg1 {[%clk 00:31:31]}
{[%emt 00:00:35]} Ne7 {[%clk 00:14:26]} {[%emt 00:01:02]} 27. Nd6 {[%clk
00:31:32]} {[%emt 00:00:09]} Qd7 {[%clk 00:13:34]} {[%emt 00:01:01]} 28. Nxc8
{[%clk 00:31:22]} {[%emt 00:00:20]} Qxc8 {[%clk 00:11:19]} {[%emt 00:02:25]} 29.
Qg3 {[%clk 00:30:16]} {[%emt 00:01:11]} Nf5 {[%clk 00:11:07]} {[%emt 00:00:27]}
30. Qh2 {[%clk 00:29:07]} {[%emt 00:01:10]} a4 {[%clk 00:08:19]} {[%emt
00:03:07]} 31. Nd2 {[%clk 00:28:53]} {[%emt 00:00:23]} Qd7 {[%clk 00:07:45]}
{[%emt 00:00:46]} 32. e4 {[%clk 00:28:14]} {[%emt 00:00:49]} Nxd4 {[%clk
00:07:34]} {[%emt 00:00:21]} 33. Rd3 {[%clk 00:24:16]} {[%emt 00:04:06]} Nb5
{[%clk 00:07:24]} {[%emt 00:00:22]} 34. Nc4 {[%clk 00:22:32]} {[%emt 00:01:53]}
Qd8 {[%clk 00:07:13]} {[%emt 00:00:22]} 35. Qe5 {[%clk 00:19:27]} {[%emt
00:03:13]} Nd7 {[%clk 00:05:11]} {[%emt 00:02:13]} 36. Qxe6 {[%clk 00:18:59]}
{[%emt 00:00:38]} Na7 {[%clk 00:03:39]} {[%emt 00:01:42]} 37. exd5 {[%clk
00:18:39]} {[%emt 00:00:31]} Nc5 {[%clk 00:03:38]} {[%emt 00:00:11]} 38. Qf5
{[%clk 00:16:10]} {[%emt 00:02:32]} Nxd3+ {[%clk 00:03:46]} {[%emt 00:00:08]}
39. Qxd3 {[%clk 00:16:00]} {[%emt 00:00:21]} Rh8 {[%clk 00:03:32]} {[%emt
00:00:24]} 40. Rxg7 {[%clk 00:15:47]} {[%emt 00:00:22]} b5 {[%clk 00:03:26]}
{[%emt 00:00:16]} 41. Qd4 {[%clk 00:15:21]} {[%emt 00:00:35]} Nc8 {[%clk
00:03:10]} {[%emt 00:00:27]} 42. Ne5 {[%clk 00:14:27]} {[%emt 00:01:04]} Qxd5
{[%clk 00:02:17]} {[%emt 00:01:04]} 43. Qxd5 {[%clk 00:13:27]} {[%emt
00:01:10]} cxd5 {[%clk 00:02:26]} 44. Rd7 {[%clk 00:13:12]} {[%emt 00:00:23]}
Nb6 {[%clk 00:02:34]} {[%emt 00:00:03]} 45. Rd6 {[%clk 00:13:16]} {[%emt
00:00:05]} Kb7 {[%emt 00:00:07]} 46. Nf7 {[%clk 00:13:14]} {[%emt 00:00:08]}
Rf8 {[%clk 00:02:43]} {[%emt 00:00:10]} 47. Rf6 {[%clk 00:13:21]} {[%emt
00:00:02]} Kc7 {[%clk 00:02:24]} {[%emt 00:00:30]} 48. Kd2 {[%clk 00:12:57]}
{[%emt 00:00:34]} Nc4+ {[%clk 00:02:27]} {[%emt 00:00:07]} 49. Kc3 {[%clk
00:12:57]} {[%emt 00:00:09]} Ne5 {[%clk 00:02:35]} {[%emt 00:00:02]} 50. Nxe5
{[%clk 00:10:39]} {[%emt 00:02:28]} Rxf6 {[%clk 00:02:44]} {[%emt 00:00:01]} 51.
Kd3 {[%clk 00:09:17]} {[%emt 00:01:32]} Kd6 {[%clk 00:02:41]} {[%emt 00:00:13]}
52. Ng4 {[%clk 00:09:01]} {[%emt 00:00:23]} Rxf3+ {[%clk 00:02:47]} {[%emt
00:00:07]} 53. Ne3 {[%clk 00:09:03]} {[%emt 00:00:09]} Rh3 {[%clk 00:02:42]}
{[%emt 00:00:14]} 54. b3 {[%clk 00:09:03]} {[%emt 00:00:10]} Ke5 {[%clk
00:02:37]} {[%emt 00:00:16]} 55. bxa4 {[%clk 00:09:04]} {[%emt 00:00:08]} bxa4
{[%clk 00:02:39]} {[%emt 00:00:08]} 56. Kd2 {[%clk 00:09:07]} {[%emt 00:00:07]}
Rxh4 {[%clk 00:02:46]} {[%emt 00:00:04]} 57. Kd3 {[%clk 00:09:04]} {[%emt
00:00:13]} Rh3 {[%clk 00:02:51]} {[%emt 00:00:05]} 58. Kd2 {[%clk 00:09:10]}
{[%emt 00:00:02]} d4 {[%clk 00:02:43]} {[%emt 00:00:19]} 59. Nc4+ {[%clk
00:09:05]} {[%emt 00:00:15]} Ke4 {[%clk 00:02:51]} {[%emt 00:00:03]} 60. Nd6+
{[%clk 00:09:11]} {[%emt 00:00:04]} Kd5 {[%clk 00:02:57]} {[%emt 00:00:03]} 61.
Nb5 {[%clk 00:09:14]} {[%emt 00:00:07]} Kc5 {[%clk 00:02:59]} {[%emt 00:00:09]}
62. Nc7 {[%clk 00:09:17]} {[%emt 00:00:07]} Rxa3 {[%clk 00:03:06]} {[%emt
00:00:02]} 63. Ne6+ {[%clk 00:09:26]} Kd5 {[%clk 00:03:10]} {[%emt 00:00:07]}
64. Nf4+ {[%clk 00:09:35]} Ke5 {[%emt 00:00:04]} 65. Ng6+ {[%clk 00:09:44]} Kf5
{[%clk 00:03:07]} {[%emt 00:00:20]} 66. Ne7+ {[%clk 00:09:51]} {[%emt
00:00:02]} Ke4 {[%clk 00:03:15]} {[%emt 00:00:03]} 67. Nc6 {[%clk 00:09:40]}
{[%emt 00:00:19]} h5 {[%clk 00:03:19]} {[%emt 00:00:07]} 68. Nd8 {[%clk
00:09:20]} {[%emt 00:00:30]} h4 {[%clk 00:03:26]} {[%emt 00:00:03]} 69. Nf7
{[%clk 00:09:29]} {[%emt 00:00:01]} Kf4 {[%emt 00:00:06]} 70. Nd6 {[%emt
00:00:03]} Rg3 {[%clk 00:03:09]} {[%emt 00:00:30]} 71. Nb5 {[%clk 00:09:36]}
{[%emt 00:00:11]} Ke5 {[%clk 00:03:16]} {[%emt 00:00:03]} 72. Na7 {[%clk
00:09:28]} {[%emt 00:00:18]} h3 {[%clk 00:03:25]} {[%emt 00:00:02]} 73. Nc6+
{[%clk 00:09:37]} {[%emt 00:00:01]} Ke4 {[%clk 00:03:23]} {[%emt 00:00:12]} 74.
Na5 {[%clk 00:09:15]} {[%emt 00:00:32]} h2 {[%clk 00:03:29]} {[%emt 00:00:03]}
75. Nc4 {[%clk 00:09:24]} {[%emt 00:00:01]} h1=Q {[%clk 00:03:30]} {[%emt
00:00:10]} 76. Nd6+ {[%clk 00:09:32]} {[%emt 00:00:02]} Kd5 {[%clk 00:03:36]}
{[%emt 00:00:03]} 0-1

[Event "FIDE U16 Olympiad_boards_81-124"]
[Site "Eindhoven, Netherlands"]
[Date "2023.08.14"]
[Round "2.34"]
[White "Zaccaria, Noa"]
[Black "Chao, Tzu-Yi Anderson"]
[Result "1-0"]
[TimeControl "45min+10sec"]
[WhiteElo "1496"]
[BlackElo "1347"]

1. d4 {[%clk 00:45:18]} {[%emt 00:00:01]} Nf6 {[%clk 00:45:18]} {[%emt
00:00:03]} 2. c4 {[%clk 00:45:27]} e6 {[%clk 00:45:17]} {[%emt 00:00:11]} 3. g3
{[%clk 00:45:36]} {[%emt 00:00:02]} Bb4+ {[%clk 00:45:09]} {[%emt 00:00:17]} 4.
Bd2 {[%clk 00:45:45]} {[%emt 00:00:01]} Qe7 {[%clk 00:44:57]} {[%emt 00:00:22]}
5. Bg2 {[%clk 00:45:48]} {[%emt 00:00:07]} Nc6 {[%clk 00:44:49]} {[%emt
00:00:18]} 6. Nf3 {[%clk 00:45:51]} {[%emt 00:00:07]} Bxd2+ {[%clk 00:44:33]}
{[%emt 00:00:26]} 7. Qxd2 {[%clk 00:45:53]} {[%emt 00:00:09]} Ne4 {[%clk
00:44:14]} {[%emt 00:00:28]} 8. Qc2 {[%clk 00:45:37]} {[%emt 00:00:26]} Qb4+
{[%clk 00:44:03]} {[%emt 00:00:20]} 9. Nc3 {[%clk 00:45:25]} {[%emt 00:00:23]}
Nxc3 {[%clk 00:43:19]} {[%emt 00:00:54]} 10. Qxc3 {[%clk 00:45:32]} {[%emt
00:00:03]} Qxc3+ {[%clk 00:42:48]} {[%emt 00:00:41]} 11. bxc3 {[%clk 00:45:41]}
d6 {[%clk 00:38:50]} {[%emt 00:04:08]} 12. O-O {[%clk 00:45:28]} {[%emt
00:00:22]} Na5 {[%clk 00:37:03]} {[%emt 00:01:58]} 13. Nd2 {[%clk 00:45:30]}
{[%emt 00:00:09]} Rb8 {[%clk 00:36:40]} {[%emt 00:00:32]} 14. Rfb1 {[%clk
00:39:53]} {[%emt 00:05:48]} b6 {[%clk 00:36:13]} {[%emt 00:00:36]} 15. e3
{[%clk 00:39:55]} {[%emt 00:00:08]} Ba6 {[%clk 00:36:13]} {[%emt 00:00:10]} 16.
Bf1 {[%clk 00:39:52]} {[%emt 00:00:14]} Ke7 {[%clk 00:36:14]} {[%emt 00:00:08]}
17. c5 {[%clk 00:26:29]} {[%emt 00:13:33]} Bxf1 {[%clk 00:35:11]} {[%emt
00:01:13]} 18. cxd6+ {[%clk 00:26:37]} {[%emt 00:00:02]} cxd6 {[%clk 00:35:16]}
{[%emt 00:00:05]} 19. Kxf1 {[%clk 00:26:45]} {[%emt 00:00:02]} Rhc8 {[%clk
00:35:19]} {[%emt 00:00:07]} 20. Rc1 {[%clk 00:26:51]} {[%emt 00:00:05]} Rc7
{[%clk 00:34:45]} {[%emt 00:00:43]} 21. Ke2 {[%clk 00:23:57]} {[%emt 00:03:04]}
Rbc8 {[%clk 00:34:30]} {[%emt 00:00:25]} 22. Kd3 {[%clk 00:23:45]} {[%emt
00:00:22]} d5 {[%clk 00:30:16]} {[%emt 00:04:24]} 23. Rc2 {[%clk 00:21:47]}
{[%emt 00:02:08]} Kd6 {[%clk 00:27:01]} {[%emt 00:03:26]} 24. Rac1 {[%clk
00:15:45]} {[%emt 00:06:11]} h6 {[%clk 00:16:29]} {[%emt 00:10:42]} 25. f3
{[%clk 00:11:00]} {[%emt 00:04:55]} Nc4 {[%clk 00:15:10]} {[%emt 00:01:29]} 26.
a4 {[%clk 00:08:11]} {[%emt 00:02:59]} Nxd2 {[%clk 00:13:02]} {[%emt 00:02:18]}
27. Kxd2 {[%clk 00:07:52]} {[%emt 00:00:29]} Rc4 {[%clk 00:13:07]} {[%emt
00:00:05]} 28. Ra1 {[%clk 00:07:58]} {[%emt 00:00:04]} a5 {[%clk 00:12:49]}
{[%emt 00:00:27]} 29. Ra3 {[%clk 00:06:40]} {[%emt 00:01:29]} g5 {[%clk
00:11:19]} {[%emt 00:01:40]} 30. Rb2 {[%clk 00:06:46]} {[%emt 00:00:05]} R8c6
{[%clk 00:10:21]} {[%emt 00:01:07]} 31. e4 {[%clk 00:05:51]} {[%emt 00:01:05]}
f6 {[%clk 00:05:17]} {[%emt 00:05:15]} 32. Kd3 {[%clk 00:05:58]} {[%emt
00:00:03]} f5 {[%clk 00:04:05]} {[%emt 00:01:21]} 33. exf5 {[%clk 00:04:21]}
{[%emt 00:01:48]} exf5 {[%clk 00:04:13]} {[%emt 00:00:02]} 34. Rb5 {[%clk
00:04:26]} {[%emt 00:00:04]} Ke6 {[%clk 00:04:05]} {[%emt 00:00:18]} 35. h4
{[%clk 00:03:41]} {[%emt 00:00:56]} Kd6 {[%clk 00:03:53]} {[%emt 00:00:22]} 36.
h5 {[%clk 00:03:08]} {[%emt 00:00:43]} Ke6 {[%clk 00:03:49]} {[%emt 00:00:13]}
37. g4 {[%clk 00:02:37]} {[%emt 00:00:42]} f4 {[%clk 00:03:57]} 38. Rab3 {[%clk
00:02:46]} {[%emt 00:00:01]} Kd6 {[%clk 00:03:55]} {[%emt 00:00:12]} 39. Rxb6
{[%clk 00:02:51]} {[%emt 00:00:05]} Rxc3+ {[%clk 00:03:58]} {[%emt 00:00:07]}
40. Rxc3 {[%clk 00:02:57]} {[%emt 00:00:03]} Rxb6 {[%clk 00:04:07]} {[%emt
00:00:02]} 41. Rc5 {[%clk 00:03:03]} {[%emt 00:00:04]} Rb3+ {[%clk 00:00:53]}
{[%emt 00:03:24]} 42. Ke2 {[%clk 00:03:10]} {[%emt 00:00:03]} Rb2+ {[%clk
00:01:00]} {[%emt 00:00:03]} 43. Kf1 {[%clk 00:03:08]} {[%emt 00:00:13]} Rb4
{[%clk 00:00:53]} {[%emt 00:00:16]} 44. Rxa5 {[%clk 00:03:14]} {[%emt
00:00:04]} Rxd4 {[%clk 00:01:00]} {[%emt 00:00:03]} 45. Ra6+ {[%clk 00:03:19]}
{[%emt 00:00:04]} Ke5 {[%clk 00:00:27]} {[%emt 00:00:45]} 46. Rxh6 {[%clk
00:02:54]} {[%emt 00:00:34]} Rxa4 {[%clk 00:00:36]} 47. Rg6 {[%clk 00:03:00]}
{[%emt 00:00:03]} Kd4 {[%clk 00:00:26]} {[%emt 00:00:21]} 48. h6 {[%clk
00:02:24]} {[%emt 00:00:46]} Ke3 {[%clk 00:00:17]} {[%emt 00:00:19]} 49. h7
{[%clk 00:01:54]} {[%emt 00:00:40]} Kxf3 {[%clk 00:00:22]} {[%emt 00:00:05]} 50.
h8=Q {[%emt 00:00:03]} Kg3 {[%clk 00:00:11]} {[%emt 00:00:21]} 51. Rxg5 {[%clk
00:01:55]} {[%emt 00:00:16]} f3 {[%clk 00:00:19]} {[%emt 00:00:02]} 52. Rxd5
{[%clk 00:01:20]} {[%emt 00:00:46]} Rc4 {[%emt 00:00:12]} 53. Qe5+ {[%clk
00:01:05]} 1-0

[Event "FIDE U16 Olympiad_boards_81-124"]
[Site "Eindhoven, Netherlands"]
[Date "2023.08.14"]
[Round "2.35"]
[White "Hsu, Che"]
[Black "Ortiz Bogdanov, Pablo"]
[Result "1-0"]
[TimeControl "45min+10sec"]
[WhiteElo "1374"]
[BlackElo "1484"]

1. e4 {[%clk 00:45:19]} e6 {[%clk 00:45:19]} {[%emt 00:00:02]} 2. b3 {[%clk
00:45:27]} {[%emt 00:00:02]} d5 {[%clk 00:45:23]} {[%emt 00:00:06]} 3. Bb2
{[%clk 00:45:35]} {[%emt 00:00:02]} c5 {[%clk 00:45:10]} {[%emt 00:00:23]} 4.
Qe2 {[%clk 00:39:33]} {[%emt 00:06:12]} d4 {[%clk 00:42:41]} {[%emt 00:02:38]}
5. f4 {[%clk 00:37:28]} {[%emt 00:02:15]} Nc6 {[%clk 00:40:07]} {[%emt
00:02:45]} 6. Nf3 {[%clk 00:37:08]} {[%emt 00:00:30]} Bd6 {[%clk 00:36:21]}
{[%emt 00:03:55]} 7. g3 {[%clk 00:32:41]} {[%emt 00:04:37]} e5 {[%clk
00:33:41]} {[%emt 00:02:51]} 8. fxe5 {[%clk 00:32:02]} {[%emt 00:00:49]} Nxe5
{[%clk 00:32:36]} {[%emt 00:01:14]} 9. Nxe5 {[%clk 00:32:10]} {[%emt 00:00:03]}
Bxe5 {[%clk 00:32:42]} {[%emt 00:00:04]} 10. d3 {[%clk 00:31:32]} {[%emt
00:00:48]} Nf6 {[%clk 00:31:42]} {[%emt 00:01:10]} 11. Nd2 {[%clk 00:24:58]}
{[%emt 00:06:43]} Qc7 {[%clk 00:26:33]} {[%emt 00:05:19]} 12. a4 {[%clk
00:20:08]} {[%emt 00:05:00]} h5 {[%clk 00:24:59]} {[%emt 00:01:45]} 13. Bg2
{[%clk 00:19:05]} {[%emt 00:01:13]} h4 {[%clk 00:21:02]} {[%emt 00:04:06]} 14.
O-O-O {[%clk 00:19:02]} {[%emt 00:00:13]} Bg4 {[%clk 00:19:33]} {[%emt
00:01:39]} 15. Bf3 {[%clk 00:18:32]} {[%emt 00:00:41]} Bxf3 {[%clk 00:19:40]}
{[%emt 00:00:03]} 16. Qxf3 {[%clk 00:18:08]} {[%emt 00:00:33]} hxg3 {[%clk
00:17:42]} {[%emt 00:02:08]} 17. hxg3 {[%clk 00:18:16]} {[%emt 00:00:02]} O-O-O
{[%clk 00:17:45]} {[%emt 00:00:08]} 18. Nc4 {[%clk 00:15:50]} {[%emt 00:02:36]}
Bxg3 {[%clk 00:16:48]} {[%emt 00:01:07]} 19. e5 {[%clk 00:15:55]} {[%emt
00:00:04]} Nh5 {[%emt 00:03:28]} 20. Rxh5 {[%clk 00:15:23]} {[%emt 00:00:40]}
Rxh5 {[%clk 00:12:12]} 21. Qxh5 {[%clk 00:15:32]} {[%emt 00:01:32]} Bf4+ {[%clk
00:12:01]} {[%emt 00:00:21]} 22. Kb1 {[%emt 00:01:11]} Rd5 {[%clk 00:11:00]} 23.
Qf5+ {[%clk 00:15:32]} {[%emt 00:00:20]} Kb8 {[%clk 00:10:36]} {[%emt
00:00:34]} 24. Qxf4 {[%clk 00:15:33]} {[%emt 00:00:08]} f6 {[%clk 00:10:18]}
{[%emt 00:00:29]} 25. Rh1 {[%clk 00:14:46]} {[%emt 00:00:57]} a6 {[%clk
00:10:21]} {[%emt 00:00:07]} 26. Rh8+ {[%clk 00:14:05]} {[%emt 00:00:51]} Ka7
{[%clk 00:10:29]} {[%emt 00:00:02]} 27. a5 {[%clk 00:14:03]} {[%emt 00:00:12]}
fxe5 {[%clk 00:10:24]} {[%emt 00:00:15]} 28. Nb6 {[%clk 00:13:40]} {[%emt
00:00:33]} Rd8 {[%clk 00:10:14]} {[%emt 00:00:20]} 29. Qh4 {[%clk 00:13:27]}
{[%emt 00:00:23]} Rb8 {[%clk 00:10:09]} {[%emt 00:00:15]} 30. Qh7 {[%clk
00:11:02]} {[%emt 00:02:34]} e4 {[%clk 00:10:02]} {[%emt 00:00:18]} 31. Rxb8
{[%clk 00:10:45]} {[%emt 00:00:27]} Qxb8 {[%clk 00:10:02]} {[%emt 00:00:09]} 32.
Qxe4 {[%clk 00:10:50]} {[%emt 00:00:05]} g5 {[%clk 00:09:51]} {[%emt 00:00:22]}
33. Bc1 {[%clk 00:10:46]} {[%emt 00:00:13]} g4 {[%clk 00:09:38]} {[%emt
00:00:23]} 34. Qxg4 {[%clk 00:10:44]} {[%emt 00:00:13]} Qh8 {[%clk 00:09:46]}
{[%emt 00:00:02]} 35. Qc8 {[%clk 00:10:04]} {[%emt 00:00:50]} c4 {[%clk
00:09:02]} {[%emt 00:00:53]} 36. Qxh8 {[%clk 00:10:09]} {[%emt 00:00:05]} c3
{[%clk 00:09:09]} {[%emt 00:00:03]} 37. Qa8# {[%clk 00:10:07]} 1-0